fUSD/lending_fUSD_20250610
["ID","MTS","AMOUNT","RATE_DAILY","PERIOD"]
[365225610,1749547849713,-151.0,0.0001799,2]
[365225611,1749547849724,-151.0,0.0001799,2]
[365225612,1749547849734,-151.0,0.0001799,2]
[365225613,1749547849743,-151.0,0.0001799,2]
[365225614,1749547849753,-151.0,0.0001799,2]
[365225615,1749547849762,-256.838914,0.0001799,2]
[365225616,1749547849773,-151.0,0.0001799,2]
[365225617,1749547849782,-151.0,0.0001799,2]
[365225618,1749547849792,-151.0,0.0001799,2]
[365225619,1749547849801,-151.0,0.0001799,2]
[365225620,1749547849811,-151.0,0.0001799,2]
[365225621,1749547849820,-151.0,0.0001799,2]
[365225622,1749547849830,-151.0,0.0001799,2]
[365225623,1749547849839,-151.0,0.0001799,2]
[365225624,1749547849849,-151.0,0.0001799,2]
[365225625,1749547849859,-151.0,0.0001799,2]
[365225626,1749547849868,-151.0,0.0001799,2]
[365225627,1749547849877,-151.0,0.0001799,2]
[365225628,1749547849887,-151.0,0.0001799,2]
[365225629,1749547849897,-247.743542,0.0001799,2]
[365225630,1749547849906,-7672.213558,0.0001799,2]
[365225631,1749547849916,-151.0,0.0001799,2]
[365225632,1749547849926,-151.0,0.0001799,2]
[365225633,1749547849935,-151.0,0.0001799,2]
[365225634,1749547849947,-151.0,0.0001799,2]
[365225635,1749547849956,-7672.213558,0.0001799,2]
[365225636,1749547849965,-151.0,0.0001799,2]
[365225637,1749547849975,-151.0,0.0001799,2]
[365225638,1749547849985,-151.0,0.0001799,2]
[365225639,1749547849995,-281.884335,0.0001799,2]
[365225640,1749547850005,-151.0,0.0001799,2]
[365225641,1749547850015,-246.860148,0.0001799,2]
[365225642,1749547850025,-151.0,0.0001799,2]
[365225643,1749547850035,-151.0,0.0001799,2]
[365225644,1749547850045,-152.211696,0.0001799,2]
[365225645,1749547850055,-151.0,0.0001799,2]
[365225646,1749547850064,-151.0,0.0001799,2]
[365225647,1749547850074,-151.0,0.0001799,2]
[365225648,1749547850083,-151.0,0.0001799,2]
[365225649,1749547850092,-151.0,0.0001799,2]
[365225650,1749547850101,-151.0,0.0001799,2]
[365225651,1749547850111,-151.0,0.0001799,2]
[365225652,1749547850121,-151.0,0.0001799,2]
[365225653,1749547850130,-151.0,0.0001799,2]
[365225654,1749547850140,-153.547384,0.0001799,2]
[365225655,1749547850151,-151.0,0.0001799,2]
[365225656,1749547850160,-151.0,0.0001799,2]
[365225657,1749547850170,-151.0,0.0001799,2]
[365225658,1749547850180,-151.0,0.0001799,2]
[365225659,1749547850189,-433.249885,0.0001799,2]
[365225660,1749547850199,-433.249885,0.0001799,2]
[365225661,1749547850209,-433.249885,0.0001799,2]
[365225662,1749547850218,-433.249885,0.0001799,2]
[365225663,1749547850228,-433.249885,0.0001799,2]
[365225664,1749547850238,-151.0,0.0001799,2]
[365225665,1749547850247,-151.0,0.0001799,2]
[365225666,1749547850257,-151.0,0.0001799,2]
[365225667,1749547850267,-190.158982,0.0001799,2]
[365225668,1749547850276,-433.249885,0.0001799,2]
[365225669,1749547850286,-433.249885,0.0001799,2]
[365225670,1749547850295,-433.249885,0.0001799,2]
[365225671,1749547850304,-433.249885,0.0001799,2]
[365225672,1749547850314,-433.249885,0.0001799,2]
[365225673,1749547850324,-151.0,0.0001799,2]
[365225674,1749547850333,-151.0,0.0001799,2]
[365225675,1749547850343,-151.0,0.0001799,2]
[365225676,1749547850352,-151.0,0.0001799,2]
[365225677,1749547850361,-151.0,0.0001799,2]
[365225678,1749547850371,-151.0,0.0001799,2]
[365225679,1749547850380,-151.0,0.0001799,2]
[365225680,1749547850390,-151.0,0.0001799,2]
[365225681,1749547850399,-151.0,0.0001799,2]
[365225682,1749547850408,-151.0,0.0001799,2]
[365225683,1749547850418,-151.0,0.0001799,2]
[365225684,1749547850427,-151.0,0.0001799,2]
[365225685,1749547850437,-151.0,0.0001799,2]
[365225686,1749547850447,-151.0,0.0001799,2]
[365225687,1749547850456,-151.0,0.0001799,2]
[365225688,1749547850466,-151.0,0.0001799,2]
[365225689,1749547850475,-151.0,0.0001799,2]
[365225690,1749547850484,-151.0,0.0001799,2]
[365225691,1749547850494,-151.0,0.0001799,2]
[365225692,1749547850503,-151.0,0.0001799,2]
[365225693,1749547850513,-151.0,0.0001799,2]
[365225694,1749547850522,-151.0,0.0001799,2]
[365225695,1749547850531,-153.284783,0.0001799,2]
[365225696,1749547850540,-151.0,0.0001799,2]
[365225697,1749547850550,-151.0,0.0001799,2]
[365225698,1749547850559,-237.902344,0.0001799,2]
[365225699,1749547850569,-664.335918,0.0001799,2]
[365225700,1749547850578,-664.335918,0.0001799,2]
[365225701,1749547850588,-664.335918,0.0001799,2]
[365225702,1749547850597,-664.335918,0.0001799,2]
[365225703,1749547850607,-664.335918,0.0001799,2]
[365225704,1749547850617,-664.335918,0.0001799,2]
[365225705,1749547850626,-664.335918,0.0001799,2]
[365225706,1749547850636,-664.335918,0.0001799,2]
[365225707,1749547850645,-664.335918,0.0001799,2]
[365225708,1749547850658,-664.335918,0.0001799,2]
[365225709,1749547850668,-151.0,0.0001799,2]
[365225710,1749547850678,-151.0,0.0001799,2]
[365225711,1749547850688,-151.0,0.0001799,2]
[365225712,1749547850698,-151.0,0.0001799,2]
[365225713,1749547850708,-151.0,0.0001799,2]
[365225714,1749547850719,-151.0,0.0001799,2]
[365225715,1749547850728,-151.0,0.0001799,2]
[365225716,1749547850738,-216.971538,0.0001799,2]
[365225717,1749547850748,-151.0,0.0001799,2]
[365225718,1749547850758,-151.0,0.0001799,2]
[365225719,1749547850769,-151.0,0.0001799,2]
[365225720,1749547850782,-215.884848,0.0001799,2]
[365225721,1749547850791,-151.0,0.0001799,2]
[365225722,1749547850801,-151.0,0.0001799,2]
[365225723,1749547850811,-151.0,0.0001799,2]
[365225724,1749547850821,-151.0,0.0001799,2]
[365225725,1749547850832,-151.0,0.0001799,2]
[365225726,1749547850841,-151.0,0.0001799,2]
[365225727,1749547850851,-151.575518,0.0001799,2]
[365225728,1749547850862,-151.0,0.0001799,2]
[365225729,1749547850872,-151.0,0.0001799,2]
[365225730,1749547850882,-151.0,0.0001799,2]
[365225731,1749547850892,-152.662646,0.0001799,2]
[365225732,1749547850901,-153.538614,0.0001799,2]
[365225733,1749547850911,-151.0,0.0001799,2]
[365225734,1749547850921,-151.0,0.0001799,2]
[365225735,1749547850931,-151.0,0.0001799,2]
[365225736,1749547850941,-151.0,0.0001799,2]
[365225737,1749547850952,-151.0,0.0001799,2]
[365225738,1749547850962,-151.0,0.0001799,2]
[365225739,1749547850972,-151.0,0.0001799,2]
[365225740,1749547850983,-151.0,0.0001799,2]
[365225741,1749547850992,-299.697834,0.0001799,2]
[365225742,1749547851002,-151.0,0.0001799,2]
[365225743,1749547851012,-299.697834,0.0001799,2]
[365225744,1749547851021,-151.0,0.0001799,2]
[365225745,1749547851031,-299.697834,0.0001799,2]
[365225746,1749547851041,-299.697834,0.0001799,2]
[365225747,1749547851050,-299.697834,0.0001799,2]
[365225748,1749547851059,-151.0,0.0001799,2]
[365225749,1749547851069,-151.0,0.0001799,2]
[365225750,1749547851078,-299.697834,0.0001799,2]
[365225751,1749547851088,-180.89521,0.0001799,2]
[365225752,1749547851098,-299.697834,0.0001799,2]
[365225753,1749547851107,-299.697834,0.0001799,2]
[365225754,1749547851324,-299.697834,0.0001799,2]
[365225755,1749547851334,-299.697834,0.0001799,2]
[365225756,1749547851343,-224.999584,0.0001799,2]
[365225757,1749547851353,-151.0,0.0001799,2]
[365225758,1749547851362,-151.0,0.0001799,2]
[365225759,1749547851371,-365.248636,0.0001799,2]
[365225760,1749547851381,-365.248636,0.0001799,2]
[365225761,1749547851390,-151.0,0.0001799,2]
[365225762,1749547851399,-365.248636,0.0001799,2]
[365225763,1749547851409,-195.538528,0.0001799,2]
[365225764,1749547851418,-365.248636,0.0001799,2]
[365225765,1749547851427,-365.248636,0.0001799,2]
[365225766,1749547851437,-365.248636,0.0001799,2]
[365225767,1749547851447,-365.248636,0.0001799,2]
[365225768,1749547851457,-365.248636,0.0001799,2]
[365225769,1749547851466,-365.248636,0.0001799,2]
[365225770,1749547851476,-365.248636,0.0001799,2]
[365225771,1749547851486,-151.0,0.0001799,2]
[365225772,1749547851497,-151.0,0.0001799,2]
[365225773,1749547851506,-151.0,0.0001799,2]
[365225774,1749547851516,-244.996998,0.0001799,2]
[365225775,1749547851526,-151.0,0.0001799,2]
[365225776,1749547851535,-151.0,0.0001799,2]
[365225777,1749547851545,-204.107327,0.0001799,2]
[365225778,1749547851555,-828.089793,0.0001799,2]
[365225779,1749547851564,-828.089793,0.0001799,2]
[365225780,1749547851574,-828.089793,0.0001799,2]
[365225781,1749547851583,-828.089793,0.0001799,2]
[365225782,1749547851593,-828.089793,0.0001799,2]
[365225783,1749547851602,-828.089793,0.0001799,2]
[365225784,1749547851611,-828.089793,0.0001799,2]
[365225785,1749547851621,-828.089793,0.0001799,2]
[365225786,1749547851630,-828.089793,0.0001799,2]
[365225787,1749547851639,-828.089793,0.0001799,2]
[365225788,1749547851649,-151.0,0.0001799,2]
[365225789,1749547851659,-154.743056,0.0001799,2]
[365225790,1749547851669,-151.0,0.0001799,2]
[365225791,1749547851678,-151.0,0.0001799,2]
[365225792,1749547851687,-151.0,0.0001799,2]
[365225793,1749547851697,-151.0,0.0001799,2]
[365225794,1749547851707,-1748.385559,0.0001799,2]
[365225795,1749547851716,-1748.385559,0.0001799,2]
[365225796,1749547851726,-1748.385559,0.0001799,2]
[365225797,1749547851736,-1748.385559,0.0001799,2]
[365225798,1749547851745,-1748.385559,0.0001799,2]
[365225799,1749547851755,-1748.385559,0.0001799,2]
[365225800,1749547851765,-1748.385559,0.0001799,2]
[365225801,1749547851778,-1748.385559,0.0001799,2]
[365225802,1749547851787,-1748.385559,0.0001799,2]
[365225803,1749547851797,-1748.385559,0.0001799,2]
[365225804,1749547851807,-151.0,0.0001799,2]
[365225805,1749547851816,-265.310271,0.0001799,2]
[365225806,1749547851825,-151.0,0.0001799,2]
[365225807,1749547851835,-151.0,0.0001799,2]
[365225808,1749547851844,-151.0,0.0001799,2]
[365225809,1749547851853,-151.0,0.0001799,2]
[365225810,1749547851863,-177.77207,0.0001799,2]
[365225811,1749547851872,-212.867511,0.0001799,2]
[365225812,1749547851882,-212.867511,0.0001799,2]
[365225813,1749547851892,-212.867511,0.0001799,2]
[365225814,1749547851902,-212.867511,0.0001799,2]
[365225815,1749547851911,-212.867511,0.0001799,2]
[365225816,1749547851921,-212.867511,0.0001799,2]
[365225817,1749547851931,-212.867511,0.0001799,2]
[365225818,1749547851941,-212.867511,0.0001799,2]
[365225819,1749547851951,-212.867511,0.0001799,2]
[365225820,1749547851960,-212.867511,0.0001799,2]
[365225821,1749547851970,-278.073399,0.0001799,2]
[365225822,1749547851981,-278.073399,0.0001799,2]
[365225823,1749547851992,-278.073399,0.0001799,2]
[365225824,1749547852002,-278.073399,0.0001799,2]
[365225825,1749547852012,-278.073399,0.0001799,2]
[365225826,1749547852021,-278.073399,0.0001799,2]
[365225827,1749547852031,-278.073399,0.0001799,2]
[365225828,1749547852040,-278.073399,0.0001799,2]
[365225829,1749547852051,-278.073399,0.0001799,2]
[365225830,1749547852061,-278.073399,0.0001799,2]
[365225831,1749547852071,-191.376881,0.0001799,2]
[365225832,1749547852081,-191.376881,0.0001799,2]
[365225833,1749547852091,-191.376881,0.0001799,2]
[365225834,1749547852101,-191.376881,0.0001799,2]
[365225835,1749547852111,-191.376881,0.0001799,2]
[365225836,1749547852121,-191.376881,0.0001799,2]
[365225837,1749547852130,-191.376881,0.0001799,2]
[365225838,1749547852140,-191.376881,0.0001799,2]
[365225839,1749547852149,-191.376881,0.0001799,2]
[365225840,1749547852159,-191.376881,0.0001799,2]
[365225841,1749547852169,-151.0,0.0001799,2]
[365225842,1749547852178,-151.0,0.0001799,2]
[365225843,1749547852188,-151.0,0.0001799,2]
[365225844,1749547852199,-151.0,0.0001799,2]
[365225845,1749547852208,-151.0,0.0001799,2]
[365225846,1749547852218,-151.0,0.0001799,2]
[365225847,1749547852228,-151.0,0.0001799,2]
[365225848,1749547852238,-151.0,0.0001799,2]
[365225849,1749547852248,-151.0,0.0001799,2]
[365225850,1749547852258,-220.317876,0.0001799,2]
[365225851,1749547852268,-151.0,0.0001799,2]
[365225852,1749547852278,-151.0,0.0001799,2]
[365225853,1749547852289,-217.431626,0.0001799,2]
[365225854,1749547852301,-151.0,0.0001799,2]
[365225855,1749547852311,-151.0,0.0001799,2]
[365225856,1749547852320,-151.0,0.0001799,2]
[365225857,1749547852332,-195.62147,0.0001799,2]
[365225858,1749547852343,-200.0,0.00017991,2]
[365225859,1749547852353,-200.0,0.00017991,2]
[365225860,1749547852364,-200.0,0.00017991,2]
[365225861,1749547852373,-300.0,0.00017999,2]
[365225862,1749547852383,-300.0,0.00017999,2]
[365225863,1749547852393,-151.0,0.00017999,2]
[365225864,1749547852403,-299.697834,0.00017999,2]
[365225865,1749547852413,-299.697834,0.00017999,2]
[365225866,1749547852422,-278.073399,0.00017999,2]
[365225867,1749547852432,-278.073399,0.00017999,2]
[365225868,1749547852442,-42037.89417283,0.00018,3]
[365225869,1749547852453,-358178.79309113,0.00018,3]
[365225870,1749547852981,-161.85310669,0.00018,3]
[365225871,1749547853172,-1903.13413503,0.00018,3]
[365225872,1749547853208,-4608.05129193,0.00018,3]
[365225873,1749547853220,-27302.36843258,0.00018,3]
[365225874,1749547853232,-6522.167363,0.00018,3]
[365225875,1749547853244,-10742.12280321,0.00018,3]
[365225876,1749547853379,-454.85,0.00017495,2]
[365225877,1749547853390,-911.389,0.00017851,2]
[365225878,1749547853402,-3173.611,0.00017851,2]
[365225879,1749547853412,-1646.10718346,0.00018,3]
[365225880,1749547853431,-930.50948309,0.00018,3]
[365225881,1749547853459,-12854.03548741,0.00018,3]
[365225882,1749547888339,600.0,0.00015068,2]
[365225883,1749547932535,150.0,0.000246,120]
[365225884,1749547942013,383.02,0.000199,31]
[365225885,1749547942084,383.02,0.000199,31]
[365225886,1749547942142,383.02,0.000199,31]
[365225887,1749547942246,383.02,0.000199,31]
[365225888,1749547942312,383.02,0.000199,31]
[365225889,1749547942368,383.02,0.000199,31]
[365225890,1749547942432,383.02,0.000199,31]
[365225891,1749547942749,383.02,0.000199,31]
[365225892,1749547942838,383.02,0.000199,31]
[365225893,1749547942897,383.02,0.000199,31]
[365225894,1749547943003,383.02,0.000199,31]
[365225895,1749547943111,383.02,0.000199,31]
[365225896,1749547943174,383.02,0.000199,31]
[365225897,1749547943229,383.02,0.000199,31]
[365225898,1749547943284,383.02,0.000199,31]
[365225899,1749547943343,383.02,0.000199,31]
[365225900,1749548003829,1416.59,0.00014828,2]
[365225901,1749548055192,150.0,0.000246,120]
[365225906,1749548177997,150.0,0.000246,120]
[365225908,1749548301109,150.0,0.000246,120]
[365225909,1749548339672,392.0,0.0002465,120]
[365225910,1749548340510,1240.0,0.0002465,120]
[365225911,1749548341327,1801.0,0.0002465,120]
[365225912,1749548343487,159.18825543,0.00024658,120]
[365225913,1749548347901,274.394399,0.00024658,120]
[365225914,1749548423807,150.0,0.000246,120]
[365225915,1749548513999,231.88876262,0.00024658,120]
[365225916,1749548536663,200.11204449,0.00024658,120]
[365225917,1749548546547,150.0,0.000246,120]
[365225918,1749548554345,321.77,0.000199,31]
[365225919,1749548554404,321.77,0.000199,31]
[365225920,1749548554469,321.77,0.000199,31]
[365225921,1749548554526,321.77,0.000199,31]
[365225922,1749548554587,321.77,0.000199,31]
[365225923,1749548554845,321.77,0.000199,31]
[365225924,1749548555110,321.77,0.000199,31]
[365225925,1749548555165,321.77,0.000199,31]
[365225926,1749548555225,321.77,0.000199,31]
[365225927,1749548555283,321.77,0.000199,31]
[365225928,1749548555337,321.77,0.000199,31]
[365225929,1749548555397,321.77,0.000199,31]
[365225930,1749548555452,321.77,0.000199,31]
[365225931,1749548555508,321.77,0.000199,31]
[365225932,1749548555568,321.77,0.000199,31]
[365225933,1749548556140,321.77,0.000199,31]
[365225934,1749548599438,200.0,0.00024658,120]
[365225935,1749548608724,172.34,0.00013197,2]
[365225936,1749548639848,883.38,0.00019205,30]
[365225937,1749548646435,194.70237206,0.0002,30]
[365225938,1749548662194,200.0,0.00024658,120]
[365225939,1749548669367,150.0,0.000246,120]
[365225940,1749548677272,193.19985582,0.00015713,2]
[365225941,1749548681367,415.0,0.00015283,2]
[365225942,1749548681758,415.0,0.00015735,2]
[365225943,1749548724782,200.0,0.00024658,120]
[365225947,1749548793205,150.0,0.000246,120]
[365225953,1749548843119,381.54,0.00013699,2]
[365225961,1749548916077,150.0,0.000246,120]
[365225963,1749548929778,1333.0,0.00023233,120]
[365225967,1749548964483,1141.09583858,0.00024649,120]
[365225968,1749549026941,1044.49840065,0.00023,120]
[365225973,1749549031476,-500.0,0.00016164,2]
[365225975,1749549031487,-500.0,0.00016164,2]
[365225976,1749549031497,-165.09,0.00016384,2]
[365225977,1749549031507,-250.0,0.00016404,2]
[365225978,1749549031517,-412.45928151,0.00016424,2]
[365225979,1749549031529,-396.3812676,0.00016424,2]
[365225980,1749549031541,-2009.21945089,0.00016424,2]
[365225981,1749549031550,-99.10753534,0.00016432,2]
[365225982,1749549031562,-900.89246466,0.00016432,2]
[365225983,1749549031572,-663.48404903,0.00016435,2]
[365225984,1749549031634,-536.51595097,0.00016435,2]
[365225985,1749549031643,-416.89908598,0.00016436,2]
[365225986,1749549031654,-300.0,0.00016436,2]
[365225987,1749549031664,-300.0,0.00016436,2]
[365225988,1749549031674,-300.0,0.00016437,2]
[365225989,1749549031684,-490.0,0.00016438,2]
[365225990,1749549031694,-481.34,0.00016438,2]
[365225991,1749549031703,-490.0,0.00016438,2]
[365225992,1749549031713,-490.0,0.00016438,2]
[365225993,1749549031723,-490.0,0.00016438,2]
[365225994,1749549031733,-490.0,0.00016438,2]
[365225995,1749549031742,-490.0,0.00016438,2]
[365225996,1749549031752,-430.40253871,0.00016438,2]
[365225997,1749549031762,-490.0,0.00016438,2]
[365225998,1749549031771,-490.0,0.00016438,2]
[365225999,1749549031781,-490.0,0.00016438,2]
[365226000,1749549031791,-490.0,0.00016438,2]
[365226001,1749549031800,-490.0,0.00016438,2]
[365226002,1749549031810,-490.0,0.00016438,2]
[365226003,1749549031820,-490.0,0.00016438,2]
[365226004,1749549031829,-490.0,0.00016438,2]
[365226005,1749549031839,-490.0,0.00016438,2]
[365226006,1749549031850,-490.0,0.00016438,2]
[365226007,1749549031859,-480.0,0.00016438,2]
[365226008,1749549031869,-614.8,0.00016438,2]
[365226009,1749549031879,-490.0,0.00016438,2]
[365226010,1749549031888,-490.0,0.00016438,2]
[365226011,1749549031897,-490.0,0.00016438,2]
[365226012,1749549031907,-629.23263249,0.00016438,2]
[365226013,1749549031916,-490.0,0.00016438,2]
[365226014,1749549031926,-480.0,0.00016438,2]
[365226015,1749549031936,-490.0,0.00016438,2]
[365226017,1749549031945,-490.0,0.00016438,2]
[365226019,1749549031955,-490.0,0.00016438,2]
[365226020,1749549031965,-490.0,0.00016438,2]
[365226021,1749549031976,-290.98456614,0.00016438,2]
[365226022,1749549031986,-490.0,0.00016438,2]
[365226023,1749549031995,-490.0,0.00016438,2]
[365226025,1749549032005,-600.0,0.00016438,2]
[365226027,1749549032015,-150.0,0.00016441,7]
[365226029,1749549032024,-2104.53,0.00016448,2]
[365226031,1749549032034,-500.0,0.00016525,2]
[365226033,1749549032044,-180.0,0.00016525,2]
[365226035,1749549032053,-500.0,0.00016525,2]
[365226037,1749549032063,-326.20304749,0.00016525,2]
[365226039,1749549032072,-500.0,0.00016525,2]
[365226041,1749549032082,-500.0,0.00016525,2]
[365226042,1749549032091,-367.96165388,0.00016525,2]
[365226043,1749549032101,-500.0,0.00016525,2]
[365226044,1749549032111,-490.92820607,0.00016525,2]
[365226045,1749549032121,-500.0,0.00016525,2]
[365226046,1749549032130,-23900.0,0.00016526,2]
[365226047,1749549032140,-200.0,0.0001653,2]
[365226048,1749549032155,-477.76,0.00016552,2]
[365226049,1749549032165,-500.0,0.00016577,2]
[365226050,1749549032177,-490.0,0.00016602,2]
[365226051,1749549032187,-490.0,0.00016602,2]
[365226052,1749549032197,-418.41581375,0.00016602,2]
[365226053,1749549032206,-490.0,0.00016602,2]
[365226054,1749549032216,-490.0,0.00016602,2]
[365226056,1749549032225,-169.57,0.00016602,2]
[365226058,1749549032235,-563.52,0.00016602,2]
[365226060,1749549032245,-378.43215749,0.00016602,2]
[365226062,1749549032256,-490.0,0.00016602,2]
[365226064,1749549032267,-546.88783111,0.00016602,2]
[365226066,1749549032276,-490.0,0.00016602,2]
[365226068,1749549032285,-490.0,0.00016602,2]
[365226070,1749549032295,-425.22,0.00016602,2]
[365226072,1749549032304,-250.0,0.00016644,2]
[365226074,1749549032314,-150.0,0.0001666,2]
[365226076,1749549032323,-454.78,0.00016673,2]
[365226078,1749549032333,-458.14,0.000167,2]
[365226080,1749549032343,-454.78,0.000167,2]
[365226082,1749549032353,-209.31,0.00016719,2]
[365226084,1749549032364,-490.0,0.00016767,2]
[365226086,1749549032374,-523.07807559,0.00016767,2]
[365226088,1749549032383,-490.0,0.00016767,2]
[365226090,1749549032393,-490.0,0.00016767,2]
[365226092,1749549032402,-490.0,0.00016767,2]
[365226094,1749549032412,-490.0,0.00016931,2]
[365226096,1749549032422,-490.0,0.00016931,2]
[365226098,1749549032432,-490.0,0.00016931,2]
[365226100,1749549032443,-166.38,0.00016956,2]
[365226102,1749549032452,-152.32,0.00016981,2]
[365226104,1749549032462,-207.4,0.00016982,2]
[365226106,1749549032472,-1957.856,0.00016982,2]
[365226109,1749549032483,-1000.0,0.00016982,2]
[365226111,1749549032492,-500.0,0.00016982,2]
[365226113,1749549032503,-500.0,0.00016982,2]
[365226115,1749549032512,-500.0,0.00016982,2]
[365226117,1749549032521,-500.0,0.00016982,2]
[365226119,1749549032531,-500.0,0.00016982,2]
[365226121,1749549032540,-500.0,0.00016982,2]
[365226123,1749549032550,-500.0,0.00016982,2]
[365226125,1749549032559,-500.0,0.00016982,2]
[365226127,1749549032569,-500.0,0.00016982,2]
[365226129,1749549032579,-500.0,0.00016982,2]
[365226131,1749549032588,-500.0,0.00016982,2]
[365226133,1749549032598,-500.0,0.00016982,2]
[365226135,1749549032607,-151.0,0.00016982,2]
[365226137,1749549032617,-500.0,0.00016982,2]
[365226139,1749549032626,-151.0,0.00016982,2]
[365226141,1749549032636,-500.0,0.00016982,2]
[365226142,1749549032645,-500.0,0.00016982,2]
[365226144,1749549032654,-151.0,0.00016982,2]
[365226147,1749549032665,-2030.296672,0.00017037,2]
[365226149,1749549032675,-833.29909032,0.00017039,2]
[365226151,1749549032684,-1416.59,0.00017092,2]
[365226153,1749549032693,-2105.41764886,0.00017092,2]
[365226155,1749549032707,-490.0,0.00017095,2]
[365226157,1749549032716,-490.0,0.00017095,2]
[365226159,1749549032726,-490.0,0.00017095,2]
[365226161,1749549032735,-1078.0,0.000171,2]
[365226163,1749549032745,-2183.31810187,0.00017147,2]
[365226165,1749549032755,-221.28780819,0.00017177,2]
[365226167,1749549032764,-275.07857599,0.00017177,2]
[365226169,1749549032774,-192.0662779,0.00017177,2]
[365226171,1749549032783,-188.65526892,0.00017177,2]
[365226173,1749549032792,-300.39,0.00017178,2]
[365226175,1749549032802,-341.14,0.00017178,2]
[365226177,1749549032812,-300.0,0.00017178,2]
[365226179,1749549032822,-1163.59,0.00017178,2]
[365226181,1749549032832,-354.51,0.00017178,2]
[365226183,1749549032841,-354.51,0.00017178,2]
[365226185,1749549032851,-1163.59,0.00017178,2]
[365226187,1749549032861,-354.51,0.00017178,2]
[365226189,1749549032870,-411.33,0.00017178,2]
[365226191,1749549032880,-354.51,0.00017178,2]
[365226193,1749549032890,-353.64,0.00017178,2]
[365226194,1749549032899,-150.0,0.00017178,2]
[365226195,1749549032909,-150.0,0.00017178,2]
[365226196,1749549032919,-300.0,0.00017178,2]
[365226197,1749549032929,-2340.17,0.00017178,2]
[365226198,1749549032939,-163.33,0.00017178,2]
[365226199,1749549032948,-163.33,0.00017178,2]
[365226200,1749549032958,-163.33,0.00017178,2]
[365226201,1749549032968,-2264.10087164,0.00017202,2]
[365226202,1749549032978,-2347.87260389,0.00017257,2]
[365226203,1749549032988,-490.0,0.0001726,2]
[365226204,1749549032998,-490.0,0.0001726,2]
[365226205,1749549033007,-490.0,0.0001726,2]
[365226206,1749549033017,-2434.74389023,0.00017312,2]
[365226208,1749549033027,-490.0,0.00017424,2]
[365226210,1749549033037,-490.0,0.00017424,2]
[365226212,1749549033048,-490.0,0.00017424,2]
[365226214,1749549033058,-1746.0,0.00017494,2]
[365226216,1749549033068,-454.78,0.00017495,2]
[365226218,1749549033079,-454.78,0.00017495,2]
[365226220,1749549033090,-461.12,0.00017495,2]
[365226222,1749549033100,-389.86,0.00017495,2]
[365226224,1749549033110,-433.28200284,0.00017499,2]
[365226226,1749549033120,-500.0,0.00017499,2]
[365226228,1749549033130,-821.0,0.0001758,2]
[365226230,1749549033140,-490.0,0.00017589,2]
[365226232,1749549033150,-490.0,0.00017589,2]